[Event "Paul Keres Memorial Festival 2022"]
[Site "Pärnu, Estonia Resort Hotel & Spa"]
[Date "2022.07.21"]
[Round "6.3"]
[White "Maiorov, Nikita"]
[Black "Protassov, Vlad"]
[Result "1-0"]
[TimeControl "60 min for 30 moves + 30 min until game end, from first move every move 30 sec time increment"]
[WhiteTitle "GM"]
[WhiteFideId "13501720"]
[BlackFideId "4507010"]
[WhiteElo "2474"]
[BlackElo "1824"]

1. d4 {[%clk 01:00:56]} {[%emt 00:00:03]} d5 {[%clk 01:00:11]} {[%emt
00:00:49]} 2. c4 {[%clk 01:01:22]} {[%emt 00:00:04]} e6 {[%clk 01:00:32]}
{[%emt 00:00:09]} 3. Nc3 {[%clk 01:01:49]} {[%emt 00:00:03]} Nf6 {[%clk
01:00:49]} {[%emt 00:00:12]} 4. cxd5 {[%clk 01:02:14]} {[%emt 00:00:07]} exd5
{[%clk 01:01:12]} {[%emt 00:00:06]} 5. Bg5 {[%clk 01:02:39]} {[%emt 00:00:05]}
c6 {[%clk 01:01:34]} {[%emt 00:00:08]} 6. Qc2 {[%clk 01:02:54]} {[%emt
00:00:15]} Be7 {[%clk 01:01:39]} {[%emt 00:00:25]} 7. e3 {[%clk 01:03:19]}
{[%emt 00:00:05]} Nbd7 {[%clk 01:01:43]} {[%emt 00:00:26]} 8. Bd3 {[%clk
01:03:35]} {[%emt 00:00:15]} h6 {[%clk 01:02:00]} {[%emt 00:00:14]} 9. Bh4
{[%clk 01:03:42]} {[%emt 00:00:23]} Nh5 {[%clk 01:02:20]} {[%emt 00:00:10]} 10.
Bxe7 {[%clk 01:03:51]} {[%emt 00:00:21]} Qxe7 {[%clk 01:02:42]} {[%emt
00:00:07]} 11. O-O-O {[%clk 01:01:11]} {[%emt 00:03:11]} Nb6 {[%clk 01:02:49]}
{[%emt 00:00:23]} 12. h3 {[%clk 01:01:33]} {[%emt 00:00:08]} Nf6 {[%clk
01:03:03]} {[%emt 00:00:16]} 13. Nf3 {[%clk 01:01:58]} {[%emt 00:00:05]} Be6
{[%clk 01:02:31]} {[%emt 00:01:01]} 14. Kb1 {[%clk 01:02:15]} {[%emt 00:00:13]}
O-O-O {[%clk 01:02:41]} {[%emt 00:00:21]} 15. Nd2 {[%clk 00:55:36]} {[%emt
00:07:08]} Kb8 {[%clk 01:02:18]} {[%emt 00:00:53]} 16. Nb3 {[%clk 00:55:36]}
{[%emt 00:00:30]} Rhe8 {[%clk 00:55:44]} {[%emt 00:07:04]} 17. Nc5 {[%clk
00:50:45]} {[%emt 00:05:21]} Nfd7 {[%clk 00:52:51]} {[%emt 00:03:23]} 18. Nb3
{[%clk 00:50:52]} {[%emt 00:00:24]} Rc8 {[%clk 00:50:36]} {[%emt 00:02:45]} 19.
f3 {[%clk 00:45:07]} {[%emt 00:06:13]} c5 {[%clk 00:37:53]} {[%emt 00:13:13]}
20. dxc5 {[%clk 00:45:28]} {[%emt 00:00:09]} Nxc5 {[%clk 00:38:17]} {[%emt
00:00:06]} 21. Nxc5 {[%clk 00:45:49]} {[%emt 00:00:10]} Qxc5 {[%clk 00:34:54]}
{[%emt 00:03:53]} 22. Bb5 {[%clk 00:34:38]} {[%emt 00:11:42]} Red8 {[%clk
00:34:42]} {[%emt 00:00:42]} 23. Rd4 {[%clk 00:33:43]} {[%emt 00:01:25]} a6
{[%clk 00:29:42]} {[%emt 00:05:31]} 24. Be2 {[%clk 00:28:42]} {[%emt 00:05:30]}
Nc4 {[%clk 00:10:56]} {[%emt 00:19:15]} 25. Bxc4 {[%clk 00:29:05]} {[%emt
00:00:08]} dxc4 {[%clk 00:11:21]} {[%emt 00:00:06]} 26. Qf2 {[%clk 00:28:34]}
{[%emt 00:01:00]} Bf5+ {[%clk 00:09:30]} {[%emt 00:02:21]} 27. Kc1 {[%clk
00:28:57]} {[%emt 00:00:08]} Rxd4 {[%clk 00:05:43]} {[%emt 00:04:16]} 28. exd4
{[%clk 00:29:22]} {[%emt 00:00:04]} Qd6 {[%clk 00:06:05]} {[%emt 00:00:07]} 29.
Qe3 {[%clk 00:29:02]} {[%emt 00:00:52]} Rd8 {[%clk 00:05:27]} {[%emt 00:01:08]}
30. d5 {[%clk 00:58:29]} {[%emt 00:01:04]} Bd3 {[%clk 00:31:12]} {[%emt
00:04:44]} 31. f4 {[%clk 00:55:23]} {[%emt 00:03:35]} Rd7 {[%clk 00:26:24]}
{[%emt 00:05:18]} 32. Re1 {[%clk 00:55:08]} {[%emt 00:00:46]} b5 {[%clk
00:24:06]} {[%emt 00:02:48]} 33. a3 {[%clk 00:55:19]} {[%emt 00:00:19]} Kb7
{[%clk 00:24:18]} {[%emt 00:00:19]} 34. g3 {[%clk 00:44:31]} {[%emt 00:11:17]}
Qb6 {[%clk 00:21:22]} {[%emt 00:03:25]} 35. Qe8 {[%clk 00:34:23]} {[%emt
00:10:38]} Rc7 {[%clk 00:20:42]} {[%emt 00:01:11]} 36. Re7 {[%clk 00:30:35]}
{[%emt 00:04:19]} Qf2 {[%clk 00:13:56]} {[%emt 00:07:15]} 37. Qc6+ {[%clk
00:30:36]} {[%emt 00:00:28]} 1-0

[Event "Paul Keres Memorial Festival 2022"]
[Site "Pärnu, Estonia Resort Hotel & Spa"]
[Date "2022.07.21"]
[Round "6.4"]
[White "Olde, Karl Erik"]
[Black "Chukavin, Kirill"]
[Result "1/2-1/2"]
[TimeControl "60 min for 30 moves + 30 min until game end, from first move every move 30 sec time increment"]
[BlackTitle "FM"]
[WhiteFideId "4505760"]
[BlackFideId "4503023"]
[WhiteElo "1842"]
[BlackElo "2418"]

1. d4 {[%clk 01:00:41]} {[%emt 00:00:18]} Nf6 {[%clk 00:54:51]} {[%emt
00:06:09]} 2. c4 {[%clk 01:00:39]} {[%emt 00:00:32]} e6 {[%clk 00:55:05]}
{[%emt 00:00:15]} 3. Nf3 {[%clk 01:00:51]} {[%emt 00:00:17]} d5 {[%clk
00:54:28]} {[%emt 00:01:07]} 4. e3 {[%clk 01:00:38]} {[%emt 00:00:44]} c5
{[%clk 00:50:35]} {[%emt 00:04:22]} 5. Nc3 {[%clk 00:58:30]} {[%emt 00:02:39]}
a6 {[%clk 00:50:47]} {[%emt 00:00:18]} 6. cxd5 {[%clk 00:50:34]} {[%emt
00:08:25]} exd5 {[%clk 00:50:17]} {[%emt 00:01:01]} 7. dxc5 {[%clk 00:47:38]}
{[%emt 00:03:27]} Bxc5 {[%clk 00:50:21]} {[%emt 00:00:25]} 8. a3 {[%clk
00:45:51]} {[%emt 00:02:18]} O-O {[%clk 00:50:04]} {[%emt 00:00:46]} 9. b4
{[%clk 00:43:06]} {[%emt 00:03:16]} Ba7 {[%clk 00:49:23]} {[%emt 00:01:11]} 10.
Be2 {[%clk 00:41:21]} {[%emt 00:02:15]} Nc6 {[%clk 00:49:10]} {[%emt 00:00:43]}
11. O-O {[%clk 00:40:12]} {[%emt 00:01:39]} Bg4 {[%clk 00:33:42]} {[%emt
00:15:58]} 12. Bb2 {[%clk 00:33:28]} {[%emt 00:07:14]} Rc8 {[%clk 00:29:05]}
{[%emt 00:05:06]} 13. b5 {[%clk 00:29:57]} {[%emt 00:04:02]} axb5 {[%clk
00:12:35]} {[%emt 00:17:00]} 14. Nxb5 {[%clk 00:29:22]} {[%emt 00:01:06]} Bb8
{[%clk 00:12:53]} {[%emt 00:00:11]} 15. Nfd4 {[%clk 00:23:28]} {[%emt
00:06:24]} Ne5 {[%clk 00:10:06]} {[%emt 00:03:17]} 16. Bxg4 {[%clk 00:17:07]}
{[%emt 00:06:51]} Nexg4 {[%clk 00:08:46]} {[%emt 00:01:50]} 17. h3 {[%clk
00:17:09]} {[%emt 00:00:28]} Ne5 {[%clk 00:08:45]} {[%emt 00:00:31]} 18. Rc1
{[%clk 00:15:57]} {[%emt 00:01:42]} Nc4 {[%clk 00:08:04]} {[%emt 00:01:11]} 19.
Bc3 {[%clk 00:14:52]} {[%emt 00:01:35]} Ne4 {[%clk 00:04:51]} {[%emt 00:03:43]}
20. Bb4 {[%clk 00:13:27]} {[%emt 00:01:56]} Re8 {[%clk 00:04:54]} {[%emt
00:00:27]} 21. Qg4 {[%clk 00:12:00]} {[%emt 00:01:57]} g6 {[%clk 00:03:12]}
{[%emt 00:02:12]} 22. Rc2 {[%clk 00:10:10]} {[%emt 00:02:19]} h5 {[%clk
00:02:37]} {[%emt 00:01:05]} 23. Qe2 {[%clk 00:09:43]} {[%emt 00:00:57]} Qf6
{[%clk 00:01:20]} {[%emt 00:01:47]} 24. Rd1 {[%clk 00:08:32]} {[%emt 00:01:41]}
Kh7 {[%clk 00:01:14]} {[%emt 00:00:36]} 25. Nc3 {[%clk 00:06:16]} {[%emt
00:02:46]} Nxc3 {[%clk 00:00:45]} {[%emt 00:00:59]} 26. Rxc3 {[%clk 00:06:40]}
{[%emt 00:00:06]} Nb6 {[%clk 00:00:32]} {[%emt 00:00:44]} 27. Qb5 {[%clk
00:05:16]} {[%emt 00:01:53]} Red8 {[%clk 00:00:34]} {[%emt 00:00:28]} 28. Rxc8
{[%clk 00:04:34]} {[%emt 00:01:12]} Rxc8 {[%clk 00:01:03]} {[%emt 00:00:02]} 29.
Nf3 {[%clk 00:04:46]} {[%emt 00:00:18]} Qc6 {[%clk 00:01:00]} {[%emt 00:00:32]}
30. Nd4 {[%clk 00:32:26]} {[%emt 00:02:50]} Qc7 {[%clk 00:30:38]} {[%emt
00:00:53]} 31. g3 {[%clk 00:32:12]} {[%emt 00:00:44]} h4 {[%clk 00:09:07]}
{[%emt 00:22:00]} 32. Ne2 {[%clk 00:20:36]} {[%emt 00:12:07]} hxg3 {[%clk
00:06:14]} {[%emt 00:03:22]} 33. fxg3 {[%clk 00:19:41]} {[%emt 00:01:25]} Qc6
{[%clk 00:04:47]} {[%emt 00:01:58]} 34. Qd3 {[%clk 00:17:28]} {[%emt 00:02:44]}
Re8 {[%clk 00:04:13]} {[%emt 00:01:03]} 35. Rf1 {[%clk 00:15:00]} {[%emt
00:02:58]} Kg8 {[%clk 00:03:36]} {[%emt 00:01:06]} 36. Bc3 {[%clk 00:13:22]}
{[%emt 00:02:09]} Qc4 {[%clk 00:01:30]} {[%emt 00:02:36]} 37. Rd1 {[%clk
00:10:27]} {[%emt 00:03:25]} Qxd3 {[%clk 00:00:33]} {[%emt 00:01:28]} 38. Rxd3
{[%clk 00:10:56]} {[%emt 00:00:01]} Nc4 {[%clk 00:00:40]} {[%emt 00:00:23]} 39.
Kf2 {[%clk 00:09:02]} {[%emt 00:02:24]} Ba7 {[%clk 00:00:58]} {[%emt 00:00:12]}
40. Bd4 {[%clk 00:08:50]} {[%emt 00:00:42]} Bxd4 {[%clk 00:01:22]} {[%emt
00:00:07]} 41. Nxd4 {[%clk 00:08:22]} {[%emt 00:00:57]} Nd6 {[%clk 00:01:45]}
{[%emt 00:00:07]} 42. Nc2 {[%clk 00:07:07]} {[%emt 00:01:46]} Ne4+ {[%clk
00:01:53]} {[%emt 00:00:21]} 43. Kf3 {[%clk 00:07:09]} {[%emt 00:00:28]} Re5
{[%clk 00:01:38]} {[%emt 00:00:45]} 44. g4 {[%clk 00:06:37]} {[%emt 00:01:02]}
Ng5+ {[%clk 00:00:47]} {[%emt 00:01:21]} 45. Kg3 {[%clk 00:06:06]} {[%emt
00:01:01]} Ne4+ {[%clk 00:01:04]} {[%emt 00:00:13]} 46. Kf3 {[%clk 00:06:30]}
{[%emt 00:00:06]} Ng5+ {[%clk 00:00:33]} {[%emt 00:01:01]} 47. Kg3 {[%clk
00:06:56]} {[%emt 00:00:04]} Ne4+ {[%clk 00:00:32]} {[%emt 00:00:31]} 48. Kf3
{[%clk 00:07:23]} {[%emt 00:00:02]} Ng5+ {[%clk 00:00:34]} {[%emt 00:00:27]} 49.
Ke4 {[%emt 00:00:04]} 1/2-1/2

[Event "Paul Keres Memorial Festival 2022"]
[Site "Pärnu, Estonia Resort Hotel & Spa"]
[Date "2022.07.21"]
[Round "6.5"]
[White "Hannson, Markus"]
[Black "Smirnov, Artem"]
[Result "0-1"]
[TimeControl "60 min for 30 moves + 30 min until game end, from first move every move 30 sec time increment"]
[BlackTitle "IM"]
[WhiteFideId "4505620"]
[BlackFideId "4143256"]
[WhiteElo "1745"]
[BlackElo "2419"]

1. c4 {[%clk 01:00:57]} {[%emt 00:00:02]} e5 {[%clk 01:00:54]} {[%emt
00:00:06]} 2. Nc3 {[%clk 01:01:19]} {[%emt 00:00:09]} d6 {[%clk 01:01:14]}
{[%emt 00:00:10]} 3. g3 {[%clk 00:58:37]} {[%emt 00:03:12]} Be7 {[%clk
01:00:24]} {[%emt 00:01:20]} 4. Bg2 {[%clk 00:58:18]} {[%emt 00:00:49]} f5
{[%clk 01:00:34]} {[%emt 00:00:19]} 5. e3 {[%clk 00:58:06]} {[%emt 00:00:43]}
Nf6 {[%clk 01:00:50]} {[%emt 00:00:14]} 6. Nge2 {[%clk 00:58:17]} {[%emt
00:00:19]} c6 {[%clk 01:00:31]} {[%emt 00:00:49]} 7. d4 {[%clk 00:57:44]}
{[%emt 00:01:03]} O-O {[%clk 01:00:14]} {[%emt 00:00:47]} 8. O-O {[%clk
00:58:08]} {[%emt 00:00:06]} Na6 {[%clk 00:59:21]} {[%emt 00:01:23]} 9. b3
{[%clk 00:53:23]} {[%emt 00:05:15]} e4 {[%clk 00:55:07]} {[%emt 00:04:44]} 10.
a3 {[%clk 00:48:45]} {[%emt 00:05:09]} d5 {[%clk 00:53:41]} {[%emt 00:01:55]}
11. f3 {[%clk 00:42:27]} {[%emt 00:06:47]} Nc7 {[%clk 00:52:32]} {[%emt
00:01:39]} 12. c5 {[%clk 00:31:47]} {[%emt 00:11:10]} exf3 {[%clk 00:45:19]}
{[%emt 00:07:44]} 13. Bxf3 {[%clk 00:31:55]} {[%emt 00:00:22]} Ne6 {[%clk
00:44:44]} {[%emt 00:01:05]} 14. Bd2 {[%clk 00:30:04]} {[%emt 00:02:21]} Ng5
{[%clk 00:43:39]} {[%emt 00:01:34]} 15. Bg2 {[%clk 00:30:11]} {[%emt 00:00:23]}
Qe8 {[%clk 00:30:52]} {[%emt 00:13:17]} 16. Nf4 {[%clk 00:23:15]} {[%emt
00:07:24]} Bd8 {[%clk 00:26:30]} {[%emt 00:04:54]} 17. Nd3 {[%clk 00:20:31]}
{[%emt 00:03:14]} Bc7 {[%clk 00:24:06]} {[%emt 00:02:55]} 18. b4 {[%clk
00:20:06]} {[%emt 00:00:56]} Ng4 {[%clk 00:20:07]} {[%emt 00:04:28]} 19. Qe1
{[%clk 00:14:35]} {[%emt 00:06:01]} Bd7 {[%clk 00:13:10]} {[%emt 00:07:27]} 20.
Nf4 {[%clk 00:10:43]} {[%emt 00:04:22]} Ne4 {[%clk 00:11:36]} {[%emt 00:02:04]}
21. Nxe4 {[%clk 00:10:10]} {[%emt 00:01:03]} fxe4 {[%clk 00:11:59]} {[%emt
00:00:06]} 22. b5 {[%clk 00:09:32]} {[%emt 00:01:08]} g5 {[%clk 00:10:49]}
{[%emt 00:01:40]} 23. bxc6 {[%clk 00:09:32]} {[%emt 00:00:30]} bxc6 {[%clk
00:11:11]} {[%emt 00:00:08]} 24. Ne2 {[%clk 00:05:46]} {[%emt 00:04:16]} Qh5
{[%clk 00:09:03]} {[%emt 00:02:38]} 25. h3 {[%emt 00:04:13]} Nh6 {[%clk
00:03:54]} {[%emt 00:01:39]} 26. Kh2 {[%clk 00:04:39]} {[%emt 00:01:56]} Rxf1
{[%clk 00:01:05]} {[%emt 00:03:18]} 27. Qxf1 {[%clk 00:03:56]} {[%emt
00:01:12]} Rf8 {[%clk 00:01:14]} {[%emt 00:00:22]} 28. Qe1 {[%clk 00:03:50]}
{[%emt 00:00:35]} Bxh3 {[%clk 00:00:42]} {[%emt 00:01:03]} 29. Bxh3 {[%clk
00:04:13]} {[%emt 00:00:07]} g4 {[%clk 00:00:48]} {[%emt 00:00:24]} 30. Nf4
{[%clk 00:32:48]} {[%emt 00:01:55]} Bxf4 {[%clk 00:31:09]} {[%emt 00:00:09]} 31.
exf4 {[%clk 00:33:11]} {[%emt 00:00:06]} Qxh3+ {[%clk 00:30:03]} {[%emt
00:01:36]} 32. Kg1 {[%clk 00:33:38]} {[%emt 00:00:04]} Nf5 {[%clk 00:30:01]}
{[%emt 00:00:32]} 33. Qf2 {[%clk 00:29:17]} {[%emt 00:04:50]} Rb8 {[%clk
00:30:10]} {[%emt 00:00:21]} 34. Be3 {[%clk 00:28:32]} {[%emt 00:01:15]} Nxe3
{[%clk 00:29:03]} {[%emt 00:01:37]} 0-1

[Event "Paul Keres Memorial Festival 2022"]
[Site "Pärnu, Estonia Resort Hotel & Spa"]
[Date "2022.07.21"]
[Round "6.6"]
[White "Valdats, Reinis"]
[Black "Andrijashkin, Deniss"]
[Result "0-1"]
[TimeControl "60 min for 30 moves + 30 min until game end, from first move every move 30 sec time increment"]
[WhiteFideId "11617578"]
[BlackFideId "4504631"]
[WhiteElo "1514"]
[BlackElo "2006"]

1. e4 {[%clk 01:00:59]} g6 {[%clk 00:57:42]} {[%emt 00:03:13]} 2. d4 {[%clk
01:01:11]} {[%emt 00:00:24]} Bg7 {[%clk 00:58:05]} {[%emt 00:00:07]} 3. Nf3
{[%clk 01:00:06]} {[%emt 00:01:35]} d6 {[%clk 00:58:23]} {[%emt 00:00:13]} 4.
Bd3 {[%clk 01:00:01]} {[%emt 00:00:34]} Nd7 {[%clk 00:53:33]} {[%emt 00:05:20]}
5. c4 {[%clk 00:58:50]} {[%emt 00:01:40]} e5 {[%clk 00:50:40]} {[%emt
00:03:24]} 6. d5 {[%clk 00:56:10]} {[%emt 00:03:10]} Ngf6 {[%clk 00:46:21]}
{[%emt 00:04:50]} 7. Nc3 {[%clk 00:55:47]} {[%emt 00:00:52]} O-O {[%clk
00:46:35]} {[%emt 00:00:16]} 8. O-O {[%clk 00:54:33]} {[%emt 00:01:43]} h6
{[%clk 00:42:00]} {[%emt 00:05:06]} 9. h3 {[%clk 00:54:06]} {[%emt 00:00:56]}
Ne8 {[%clk 00:37:14]} {[%emt 00:05:16]} 10. Qc2 {[%clk 00:50:44]} {[%emt
00:03:52]} Nc5 {[%clk 00:34:07]} {[%emt 00:03:38]} 11. Be2 {[%clk 00:50:44]}
{[%emt 00:00:30]} a5 {[%clk 00:27:10]} {[%emt 00:07:28]} 12. Be3 {[%clk
00:50:08]} {[%emt 00:01:05]} Bd7 {[%clk 00:23:25]} {[%emt 00:04:16]} 13. b3
{[%clk 00:39:12]} {[%emt 00:11:25]} f5 {[%clk 00:23:32]} {[%emt 00:00:23]} 14.
Nd2 {[%clk 00:39:00]} {[%emt 00:00:41]} f4 {[%clk 00:17:47]} {[%emt 00:06:16]}
15. Bxc5 {[%clk 00:39:03]} {[%emt 00:00:28]} dxc5 {[%clk 00:18:15]} {[%emt
00:00:03]} 16. Qd1 {[%clk 00:30:12]} {[%emt 00:09:19]} h5 {[%clk 00:18:26]}
{[%emt 00:00:19]} 17. a3 {[%clk 00:27:44]} {[%emt 00:02:59]} Qe7 {[%clk
00:14:24]} {[%emt 00:04:32]} 18. Rb1 {[%clk 00:25:41]} {[%emt 00:02:30]} Nf6
{[%clk 00:09:23]} {[%emt 00:05:33]} 19. Rb2 {[%clk 00:19:13]} {[%emt 00:06:58]}
Ra6 {[%clk 00:06:21]} {[%emt 00:03:33]} 20. Nb5 {[%clk 00:14:50]} {[%emt
00:04:53]} Bc8 {[%clk 00:05:38]} {[%emt 00:01:13]} 21. Bf3 {[%clk 00:12:19]}
{[%emt 00:03:00]} g5 {[%clk 00:05:52]} {[%emt 00:00:18]} 22. Be2 {[%clk
00:03:51]} {[%emt 00:08:58]} g4 {[%clk 00:06:11]} {[%emt 00:00:12]} 23. h4
{[%clk 00:03:17]} {[%emt 00:01:03]} Nh7 {[%clk 00:03:11]} {[%emt 00:03:26]} 24.
g3 {[%clk 00:03:27]} {[%emt 00:00:24]} Rg6 {[%clk 00:02:07]} {[%emt 00:01:33]}
25. Rb1 {[%clk 00:02:55]} {[%emt 00:01:02]} Bf6 {[%clk 00:02:07]} {[%emt
00:00:28]} 26. Re1 {[%clk 00:02:07]} {[%emt 00:01:20]} f3 {[%clk 00:02:02]}
{[%emt 00:00:35]} 27. Bd3 {[%clk 00:02:18]} {[%emt 00:00:19]} Bxh4 {[%clk
00:02:11]} {[%emt 00:00:20]} 28. gxh4 {[%clk 00:01:49]} {[%emt 00:00:59]} Qxh4
{[%clk 00:02:01]} {[%emt 00:00:40]} 29. Nf1 {[%clk 00:01:40]} {[%emt 00:00:39]}
Qh3 {[%clk 00:01:02]} {[%emt 00:01:29]} 30. Ne3 {[%clk 00:31:57]} {[%emt
00:00:13]} g3 {[%clk 00:31:22]} {[%emt 00:00:10]} 0-1

[Event "Paul Keres Memorial Festival 2022"]
[Site "Pärnu, Estonia Resort Hotel & Spa"]
[Date "2022.07.21"]
[Round "6.7"]
[White "Medar, Marti"]
[Black "Paikens, Reinis"]
[Result "0-1"]
[TimeControl "60 min for 30 moves + 30 min until game end, from first move every move 30 sec time increment"]
[WhiteFideId "4501870"]
[BlackFideId "11624078"]
[WhiteElo "2066"]
[BlackElo "1567"]

1. d4 {[%clk 01:00:55]} {[%emt 00:00:03]} d5 {[%clk 01:00:52]} {[%emt
00:00:10]} 2. c4 {[%clk 01:01:04]} {[%emt 00:00:21]} c6 {[%clk 01:00:27]}
{[%emt 00:00:54]} 3. Nf3 {[%clk 01:00:45]} {[%emt 00:00:49]} Nf6 {[%clk
01:00:37]} {[%emt 00:00:21]} 4. Qc2 {[%clk 01:00:33]} {[%emt 00:00:42]} g6
{[%clk 01:00:09]} {[%emt 00:00:59]} 5. Nc3 {[%clk 00:58:19]} {[%emt 00:02:43]}
Bg7 {[%clk 01:00:20]} {[%emt 00:00:19]} 6. Bg5 {[%clk 00:56:46]} {[%emt
00:02:03]} O-O {[%clk 01:00:07]} {[%emt 00:00:43]} 7. e3 {[%clk 00:56:30]}
{[%emt 00:00:46]} dxc4 {[%clk 00:56:34]} {[%emt 00:04:03]} 8. Bxc4 {[%clk
00:56:33]} {[%emt 00:00:27]} Bf5 {[%clk 00:56:44]} {[%emt 00:00:20]} 9. e4
{[%clk 00:50:25]} {[%emt 00:06:38]} Bg4 {[%clk 00:56:03]} {[%emt 00:01:11]} 10.
Be3 {[%clk 00:50:53]} {[%emt 00:00:02]} Nbd7 {[%clk 00:54:06]} {[%emt
00:02:26]} 11. Ne5 {[%clk 00:47:01]} {[%emt 00:04:22]} Nxe5 {[%clk 00:51:18]}
{[%emt 00:03:18]} 12. dxe5 {[%clk 00:47:28]} {[%emt 00:00:02]} Nd7 {[%clk
00:51:05]} {[%emt 00:00:44]} 13. f4 {[%clk 00:47:42]} {[%emt 00:00:16]} b5
{[%clk 00:50:14]} {[%emt 00:01:22]} 14. Bb3 {[%clk 00:47:37]} {[%emt 00:00:34]}
Nb6 {[%clk 00:50:09]} {[%emt 00:00:35]} 15. h3 {[%clk 00:47:28]} {[%emt
00:00:39]} Bc8 {[%clk 00:50:20]} {[%emt 00:00:19]} 16. Rd1 {[%clk 00:47:39]}
{[%emt 00:00:18]} Qe8 {[%clk 00:49:31]} {[%emt 00:01:20]} 17. O-O {[%clk
00:43:06]} {[%emt 00:05:03]} Bb7 {[%clk 00:48:14]} {[%emt 00:01:47]} 18. Qf2
{[%clk 00:37:14]} {[%emt 00:06:22]} Nc8 {[%clk 00:46:25]} {[%emt 00:02:19]} 19.
Bc5 {[%clk 00:37:25]} {[%emt 00:00:19]} Kh8 {[%clk 00:44:33]} {[%emt 00:02:21]}
20. Qd4 {[%clk 00:30:58]} {[%emt 00:06:57]} Nb6 {[%clk 00:39:53]} {[%emt
00:05:11]} 21. Bxb6 {[%clk 00:30:42]} {[%emt 00:00:46]} axb6 {[%clk 00:40:22]}
{[%emt 00:00:02]} 22. Qxb6 {[%clk 00:31:10]} {[%emt 00:00:02]} Ba6 {[%clk
00:38:59]} {[%emt 00:01:53]} 23. Rf3 {[%clk 00:26:56]} {[%emt 00:04:43]} Rg8
{[%clk 00:36:33]} {[%emt 00:02:56]} 24. e6 {[%clk 00:25:26]} {[%emt 00:02:00]}
f5 {[%clk 00:33:07]} {[%emt 00:03:56]} 25. Bc2 {[%clk 00:21:39]} {[%emt
00:04:17]} Qb8 {[%clk 00:29:31]} {[%emt 00:04:06]} 26. Qxb8 {[%clk 00:05:18]}
{[%emt 00:16:51]} Rgxb8 {[%clk 00:27:52]} {[%emt 00:02:10]} 27. b4 {[%clk
00:05:46]} {[%emt 00:00:01]} Bb7 {[%clk 00:23:57]} {[%emt 00:04:24]} 28. Bb3
{[%clk 00:03:04]} {[%emt 00:03:12]} fxe4 {[%clk 00:20:09]} {[%emt 00:04:19]} 29.
Re3 {[%clk 00:01:55]} {[%emt 00:01:39]} Rd8 {[%clk 00:18:48]} {[%emt 00:01:51]}
30. Kh2 {[%clk 00:30:38]} {[%emt 00:01:47]} Bd4 {[%clk 00:39:48]} {[%emt
00:09:30]} 31. Rg3 {[%clk 00:20:45]} {[%emt 00:10:23]} e3 {[%clk 00:38:03]}
{[%emt 00:02:15]} 32. Ne2 {[%clk 00:17:22]} {[%emt 00:03:53]} Bb6 {[%clk
00:37:14]} {[%emt 00:01:19]} 33. Re1 {[%clk 00:14:00]} {[%emt 00:03:52]} Rd2
{[%clk 00:35:44]} {[%emt 00:02:00]} 34. Rg5 {[%clk 00:08:38]} {[%emt 00:05:52]}
Kg7 {[%clk 00:30:44]} {[%emt 00:05:30]} 35. Re5 {[%clk 00:08:40]} {[%emt
00:00:28]} Rb2 {[%clk 00:29:54]} {[%emt 00:01:20]} 36. Kg3 {[%clk 00:06:54]}
{[%emt 00:02:16]} c5 {[%clk 00:29:19]} {[%emt 00:01:05]} 37. bxc5 {[%clk
00:07:05]} {[%emt 00:00:19]} Ba5 {[%clk 00:29:43]} {[%emt 00:00:06]} 38. Rd1
{[%clk 00:06:08]} {[%emt 00:01:28]} Rxe2 {[%clk 00:29:52]} {[%emt 00:00:21]} 39.
Rd7 {[%clk 00:06:30]} {[%emt 00:00:08]} Rxg2+ {[%clk 00:30:07]} {[%emt
00:00:15]} 40. Kh4 {[%clk 00:06:55]} {[%emt 00:00:05]} Be1# {[%clk 00:30:21]}
{[%emt 00:00:16]} 0-1